Cogmind - Beta 14 @@@ ROGUE MODE // 2024.11.19 @ 14:26:48 Player: Fangrelle Result: Destroyed by G-47 Trooper with Particle Gun Performance ------------- Evolutions (0) 0 Regions Visited (1) 200 Robots Destroyed (26) 130 Value Destroyed (773) 773 Prototype IDs (0) 0 Alien Tech Used (0) 0 Bonus (0) 0 TOTAL SCORE: 1103 Bonus ------- None Cogmind --------- Core Integrity 0/250 Matter 191/300 Energy 154/160 System Corruption 5% Temperature Hot (243) Movement Walking (190) Ox1 Location -10/Materials Parts ------- > --- POWER (1) -------- Light Nuclear Core > --- PROPULSION (2) --- Aluminum Leg > --- UTILITY (2) ------ Improved Heat Sink Medium Storage Unit > --- WEAPON (2) ------- Medium Laser Medium Laser > --- INVENTORY (10) --- Light Armor Plating Light Armor Plating Light Armor Plating Hacking Suite Beam Cannon Grenade Launcher Datajack Mining Laser Peak State ------------ > --- POWER ------------ Light Nuclear Core > --- PROPULSION ------- Aluminum Leg Aluminum Leg > --- UTILITY ---------- Improved Heat Sink Small Storage Unit > --- WEAPON ----------- Medium Laser Beam Cannon > --- INVENTORY -------- Light Nuclear Core Light Armor Plating Light Armor Plating Light Armor Plating Medium Laser Assault Rifle Datajack Mining Laser [Rating: 12] Favorites ----------- Power Light Nuclear Core Engine Ion Engine Power Core Light Nuclear Core Propulsion Light Treads Treads Light Treads Leg Aluminum Leg Wheel Compact Wheel Utility Small Storage Unit Device Terrain Scanner Storage Small Storage Unit Protection Light Armor Plating Weapon Assault Rifle Energy Gun Medium Laser Energy Cannon Beam Cannon Ballistic Gun Assault Rifle Special Weapon Mining Laser Build | -11 -10 ------- Run | Yrd Mat Slots Evolved . | . . Power . | . . Propulsion . | . . Utility . | . . Weapon . | . . Parts Attached 43 | . 43 Power 4 | . 4 Engine 2 | . 2 Core 2 | . 2 Reactor . | . . Propulsion 7 | . 7 Treads 4 | . 4 Leg 2 | . 2 Wheel 1 | . 1 Hover . | . . Flight . | . . Utility 11 | . 11 Device 6 | . 6 Storage 1 | . 1 Processor . | . . Hackware . | . . Protection 4 | . 4 Artifact . | . . Weapon 21 | . 21 Energy Gun 4 | . 4 Energy Cannon 2 | . 2 Ballistic Gun 7 | . 7 Ballistic Cannon . | . . Launcher . | . . Special Weapon 8 | . 8 Impact Weapon . | . . Slashing Weapon . | . . Piercing Weapon . | . . Special Melee Weapon . | . . Unidentified Prototypes . | . . Parts Lost 10 | . 10 Power 2 | . 2 Propulsion 3 | . 3 Utility 1 | . 1 Weapon 4 | . 4 Highest Loss Streak 3 | . 3 To Critical Strikes . | . . Average Slot Usage (%) 94 | . 94 Engine 6 | . 6 Core 6 | . 6 Treads 12 | . 12 Leg 12 | . 12 Device 7 | . 7 Storage 12 | . 12 Protection 5 | . 5 Energy Gun 7 | . 7 Energy Cannon 3 | . 3 Ballistic Gun 11 | . 11 Special Weapon 4 | . 4 Peak Build Rating 12 | . 12 Average Rating 8 | . 8 On Entrance 6 | 6 6 Naked Turns . | . . Heaviest Build 22 | 12 22 Greatest Support 40 | 20 40 Greatest Overweight (x) 3 | . 3 Average Overweight (x) . | . . Largest Inventory Capacity 10 | . 10 Average Capacity 8 | . 8 Most Carried 8 | . 8 Average Carried 6 | . 6 Final Capacity 10 | 8 10 Final Carried 8 | 6 8 Class Distribution -------------------- 91% | Mutant 8% | Scavenger-Mutant Dominant Class ---------------- Mutant | -10/Materials Resources | -11 -10 ----------- Run | Yrd Mat Matter Collected 916 | 200 716 Remotely . | . . Salvage Created 948 | . 948 Parts 61 | . 61 Haulers Intercepted 1 | . 1 Recyclers Shooed . | . . Parts Field Recycled . | . . Retrieved Matter . | . . Parts Self-Destructed . | . . Prevented . | . . Kills | -11 -10 ------- Run | Yrd Mat Combat Hostiles Destroyed 18 | . 18 Guns 11 | . 11 Cannons 7 | . 7 Classes Destroyed 7 | . 7 Worker 1 | . 1 Builder 1 | . 1 Tunneler 1 | . 1 Hauler 1 | . 1 Operator 1 | . 1 Watcher 3 | . 3 Grunt 18 | . 18 Best Kill Streak 6 | . 6 Combat Bots Only 4 | . 4 Max Kills in Single Turn 2 | . 2 Gunslinging . | . . Exploded . | . . Melee . | . . Uniques/NPCs Destroyed . | . . Combat | -11 -10 -------- Run | Yrd Mat Hostile Shots Fired 147 | . 147 Missed 38 | . 38 Damage Taken 1641 | . 1641 Core 260 | . 260 Absorbed by Shields . | . . Core Remaining (%) 100 | 100 . Volleys Fired 139 | . 139 Largest 2 | . 2 Hottest 160 | . 160 Shots Fired 230 | . 230 Gun 164 | . 164 Cannon 34 | . 34 Launcher . | . . Special 32 | . 32 Kinetic 108 | . 108 Thermal 122 | . 122 Explosive . | . . Electromagnetic . | . . Robot Hit Streak 11 | . 11 Robot Miss Streak 4 | . 4 Penetration Max . | . . Secondary Targets 2 | . 2 Max Gunslinging Chain 1 | . 1 Shots Hit Robots 108 | . 108 Core Hits 46 | . 46 Critical Kills . | . . Critical Parts Destroyed . | . . Critical Strikes 2 | . 2 Burn 2 | . 2 Melee Attacks . | . . Impact . | . . Slashing . | . . Piercing . | . . Sneak Attacks . | . . Combat Hostiles . | . . Follow-up Attacks . | . . Damage Inflicted 1551 | . 1551 Guns 1280 | . 1280 Cannons 268 | . 268 Explosions . | . . Melee . | . . Ramming 3 | . 3 Kinetic 820 | . 820 Thermal 728 | . 728 Explosive . | . . Electromagnetic . | . . Impact . | . . Slashing . | . . Piercing . | . . Highest Corruption 5 | . 5 Average Corruption 5 | . 5 Corruption Purged . | . . Corruption Blocked . | . . Effects 47 | . 47 Message Errors 11 | . 11 Matter Fused 12 | . 12 Heat Flow Errors 6 | . 6 Energy Discharges 5 | . 5 Data Loss (minor) 9 | . 9 Data Loss (major) 1 | . 1 Misfires 2 | . 2 Weapon Failures 1 | . 1 Overload Shots . | . . Overflow Damage . | . . Projectiles . | . . Explosions . | . . Melee . | . . Knockbacks . | . . Impact . | . . Kinetic . | . . Secondary . | . . Self-Inflicted Damage . | . . Shots . | . . Rammed 1 | . 1 Targets Rammed 1 | . 1 Kicked . | . . Crushed . | . . Highest Temperature 378 | . 378 Average Temperature 103 | . 103 Received Heat Transfer 795 | . 795 Effects 5 | . 5 Shutdowns 2 | . 2 Interference 1 | . 1 Matter Decay 1 | . 1 Short Circuit 1 | . 1 Siege Activations . | . . Robots Corrupted . | . . Combat Hostiles . | . . Parts Fried . | . . Impact Corruptions . | . . Robots Melted . | . . Combat Hostiles . | . . Parts Melted 2 | . 2 Heat Transferred 1998 | . 1998 Parts Sabotaged . | . . Parts Stolen . | . . Parts Stripped . | . . Power Chain Reactions . | . . Alert | -11 -10 ------- Run | Yrd Mat Peak Influence 172 | . 172 Initial . | . . Average 88 | . 88 Maximum Alert Level . | . . Low Security (%) 100 | . 100 Level 1 . | . . Level 2 . | . . Level 3 . | . . Level 4 . | . . Level 5 . | . . High Security . | . . Max Security . | . . Squads Dispatched 4 | . 4 Investigation 3 | . 3 Extermination . | . . Reinforcement 1 | . 1 Assault . | . . Garrison . | . . Intercept . | . . Searches Triggered . | . . Construction Impeded . | . . Haulers Reinforced . | . . Active Scanning Responses . | . . Cargo Convoy Interrupts . | . . Stealth | -11 -10 --------- Run | Yrd Mat Distress Signals 2 | . 2 Communications Jammed . | . . Distress Signals . | . . Times Spotted 26 | . 26 Peak Tracking Total 3 | . 3 Tactical Retreats . | . . Traps | -11 -10 ------- Run | Yrd Mat Traps Triggered 4 | . 4 Indirectly . | . . Trap Hack Attempts . | . . Triggered . | . . Disarmed . | . . Reprogrammed . | . . Reused . | . . Traps Extracted . | . . Installed . | . . Triggered . | . . Machines | -11 -10 ---------- Run | Yrd Mat Machines Disabled 3 | . 3 Max in Single Turn 1 | . 1 Machines Repaired . | . . Machines Dismantled . | . . Machines Sabotaged . | . . Overloaded Fab Kills . | . . Hacking | -11 -10 --------- Run | Yrd Mat Machines Accessed 7 | . 7 Terminals 4 | . 4 Fabricators . | . . Repair Stations 1 | . 1 Recycling Units 2 | . 2 Scanalyzers . | . . Garrison Access . | . . Total Hacks 19 | . 19 Successful 14 | . 14 Failed 5 | . 5 Catastrophic . | . . Database Lockouts . | . . Manual 16 | . 16 Terminals 12 | . 12 Fabricators . | . . Repair Stations 1 | . 1 Recycling Units 6 | . 6 Scanalyzers . | . . Garrison Access . | . . Terminal Hacks 1 | . 1 Robot Analysis 1 | . 1 Fabricator Hacks . | . . Repair Station Hacks . | . . Recycling Unit Hacks 2 | . 2 Retrieve Components 2 | . 2 Scanalyzer . | . . Garrison Access Hacks . | . . Unauthorized Hacks 11 | . 11 Terminals 8 | . 8 Assimilate 3 | . 3 Botnet 3 | . 3 Operators 1 | . 1 Skim 1 | . 1 Fabricators . | . . Repair Stations 1 | . 1 Mechanics 1 | . 1 Recycling Units 2 | . 2 Tunnel 2 | . 2 Scanalyzers . | . . Garrison Access . | . . Data Cores Recovered . | . . Used . | . . Hacking Detections 5 | . 5 Full Trace Events . | . . Feedback Events . | . . Feedback Blocked . | . . Robot Schematics Acquired . | . . Robots Built . | . . Authchips . | . . Time . | . . Total Robot Build Rating . | . . Part Schematics Acquired . | . . Parts Built . | . . Authchips . | . . Time . | . . Total Part Build Rating . | . . Parts Repaired . | . . Time . | . . Parts Recycled . | . . Recycled Matter . | . . Retrieved Matter . | . . Retrieved Components 10 | . 10 Parts Scanalyzed . | . . Part Schematics Acquired . | . . Parts Damaged . | . . Bothacking | -11 -10 ------------ Run | Yrd Mat Used RIF Installer . | . . Robots Hacked . | . . Non-combat . | . . Combat . | . . Robot Hacks Applied . | . . Relay Couplers Released . | . . Fabnet Peak Effective % . | . . Robots Rewired . | . . Allies Hacked . | . . Hacks Repelled . | . . Allies | -11 -10 -------- Run | Yrd Mat Total Allies 1 | . 1 Largest Group 1 | . 1 Highest-Rated Group 10 | . 10 Highest-Rated Ally 10 | . 10 Total Orders 1 | . 1 STAY 1 | . 1 Ally Attacks . | . . Total Damage . | . . Kills . | . . Allies Corrupted . | . . Allies Melted . | . . Intel | -11 -10 ------- Run | Yrd Mat Robot Analysis Total 1 | . 1 Derelict Logs Recovered . | . . Drone Launches . | . . Drone Recoveries . | . . Exploration | -11 -10 ------------- Run | Yrd Mat Turns Passed 2505 | . 2505 Spaces Moved 995 | 1 994 Core 1 | . 1 Treads 410 | . 410 Legs 559 | 1 558 Wheels 25 | . 25 Hover . | . . Flight . | . . Fastest Speed 100 | 120 100 Average Speed 157 | 120 157 Slowest Speed 260 | 120 260 Overloaded Moves . | . . Propulsion Burnouts . | . . Robots Hopped . | . . Cave-ins Triggered 1 | . 1 Exploration Rate (%) 44 | 2 87 Regions Visited 1 Branch Regions . Pre-discovered Areas 2 | . 2 Known Exits Taken . | . . Unknown Exits Taken 1 | 1 . Scrap Searched . | . . Spaces Dug 21 | . 21 Terrain Destroyed 30 | . 30 Melee . | . . Projectile 30 | . 30 AOE . | . . Terrain Rammed . | . . Walls Destroyed . | . . Machines Disabled . | . . Actions | -11 -10 --------- Run | Yrd Mat Total 1636 | . 1636 Wait 420 | . 420 Move 993 | . 993 Hop . | . . Pick Up 23 | . 23 Fast Attach 10 | . 10 Attach 10 | . 10 Detach . | . . Swap 23 | . 23 Drop 16 | . 16 Fire 139 | . 139 Melee . | . . Ram . | . . Kick . | . . Crush 1 | . 1 Escape Stasis 1 | . 1 Rewire . | . . Trap . | . . Miscellaneous . | . . Route ------- -11/Scrapyard -10/Materials (discovered 4 exits: [*Mat x3] / [*Min]) History --------- Turn | Location | Event 1 | -11/Scrapyard | Discovered new exit (range 0) 1 | -11/Scrapyard | Entered Materials 308 | -10/Materials | Build established: Mutant 700 | -10/Materials | Crushed by falling debris 797 | -10/Materials | Discovered new exit (range 8) 1152 | -10/Materials | Core integrity fell below 50% 1194 | -10/Materials | Lost 3 parts (1n2w) 1638 | -10/Materials | Core integrity fell below 20% 1713 | -10/Materials | Discovered new exit (range 8) 1777 | -10/Materials | Discovered new exit (range 9) 2041 | -10/Materials | Discovered new exit (range 10) 2064 | -10/Materials | Lost 3 parts (1n1u1w) 2506 | -10/Materials | Destroyed by G-47 Trooper with Particle Gun Last Messages --------------- 02117_ Acquired Lgt. Armor Plating. 02130_ K-01 Serf cleans the Material Processor. 02172_ System corrupted: Heat flow error (+222). 02196_ Dropped Imp. Heat Sink. 02197_ Acquired Med. Storage Unit. 02201_ Acquired Imp. Heat Sink. 02231_ System corrupted: Matter fused (-9). 02247_ System corrupted: Component data lost. 02277_ System corrupted: Matter fused (-5). 02293_ Acquired Grenade Launcher. 02299_ System corrupted: Matter fused (-7). 02318_ System corrupted: Heat flow error (+175). 02383_ System corrupted: Component data lost. 02404_ Q=BRJ1TSCS = S,OLG,GEDL&OK 02425_ NZ,E|TL=BAS1IV